bitfinex/quotes_ETHUSD_20251212
["timestamp","ask_amount","ask_price","bid_price","bid_amount"]
[1765547084601,6.16979268,3241.6,3240.9,0.453]
[1765547087035,7.05098966,3241.6,3240.9,0.453]
[1765547088829,7.54118966,3241.6,3240.9,0.453]
[1765547092471,7.54118966,3241.6,3240.7,3.08572647]
[1765547092472,7.05098966,3241.6,3240.6,3.55394569]
[1765547092673,7.05098966,3241.6,3240.7,0.4681]
[1765547095038,7.05098966,3241.6,3240.8,3.08565786]
[1765547095858,7.05098966,3241.6,3240.9,0.4681]
[1765547102182,7.05098966,3241.6,3240.9,3.55364102]
[1765547102388,7.05098966,3241.6,3240.9,0.4681]
[1765547102686,7.05098966,3241.6,3241.0,0.4681]
[1765547103683,7.05098966,3241.6,3240.7,3.08575307]
[1765547103889,7.05098966,3241.6,3240.7,3.55385307]
[1765547104047,7.05098966,3241.6,3240.8,0.4681]
[1765547105276,7.52838966,3241.6,3240.8,0.4681]
[1765547106275,1.5967729,3241.5,3240.8,0.4681]
[1765547106474,1.5967729,3241.5,3240.6,3.90926531]
[1765547106676,0.4774,3241.4,3240.7,0.4681]
[1765547107382,3.08518187,3241.3,3240.7,0.4681]
[1765547107881,3.08518187,3241.3,3240.7,3.55384955]
[1765547108268,3.08518187,3241.3,3240.8,0.4681]
[1765547111107,6.17036374,3241.3,3240.8,0.4681]
[1765547111401,6.64776374,3241.3,3240.8,0.4681]
[1765547112112,0.4774,3241.2,3240.6,0.4681]
[1765547112976,6.17036374,3241.3,3240.6,0.4681]
[1765547113496,0.4774,3241.2,3240.4,3.55404862]
[1765547113890,3.08537225,3241.1,3240.4,6.17207752]
[1765547114095,3.56272575,3241.2,3240.5,0.4681]
[1765547114271,6.6480515,3241.2,3240.5,0.4681]
[1765547115006,3.56272575,3241.2,3240.5,0.4681]
[1765547116787,3.08532575,3241.2,3240.6,3.08584829]
[1765547117188,3.08532575,3241.2,3240.7,0.4681]
[1765547117905,6.42,3242.1,3241.1,6.36188135]
[1765547118213,0.4774,3242.0,3241.2,0.9323]
[1765547119207,6.16922174,3241.9,3241.2,0.9323]
[1765547123007,0.58047529,3241.9,3241.2,0.4642]
[1765547123213,1.06497529,3241.9,3241.2,0.4642]
[1765547123414,1.03185225,3241.8,3241.2,0.4642]
[1765547123611,1.03185225,3241.8,3241.2,0.9464]
[1765547124115,0.0648,3241.3,3240.7,0.4822]
[1765547124607,0.9693,3241.7,3240.7,0.4822]
[1765547124608,0.4803,3241.6,3241.2,0.4947]
[1765547125096,6.16998302,3241.5,3241.2,0.4947]
[1765547125295,0.6650283,3241.4,3241.2,0.4947]
[1765547125685,0.069,3241.3,3240.9,0.4822]
[1765547126204,0.6650283,3241.4,3241.2,0.4947]
[1765547127707,3.7501792,3241.4,3241.2,0.4947]
[1765547128416,3.57234316,3242.8,3241.3,0.9769]
[1765547128716,0.58047529,3242.1,3241.5,0.4947]
[1765547128923,0.0648,3241.4,3240.9,3.56771486]
[1765547129099,0.489,3241.8,3240.9,0.9712]
[1765547129482,0.4845,3241.7,3240.9,0.9712]
[1765547129717,3.08489634,3241.6,3241.0,0.4822]
[1765547130117,3.08484456,3241.7,3241.5,0.4947]
[1765547130301,3.08484456,3241.7,3241.6,0.4947]
[1765547131389,3.08473026,3241.8,3241.4,0.4822]
[1765547131889,6.1695014,3241.8,3241.4,0.4822]
[1765547134947,3.08473026,3241.8,3241.4,0.4822]
[1765547135312,3.08473026,3241.8,3241.7,0.4947]
[1765547136812,3.08473026,3241.8,3241.7,0.9769]
[1765547137751,3.08425436,3242.3,3241.7,4.06169804]
[1765547137935,3.08425436,3242.3,3241.8,0.9769]
[1765547138136,3.08425436,3242.3,3242.2,0.4947]
[1765547138341,3.74990044,3242.3,3242.2,0.4947]
[1765547139220,3.08425436,3242.3,3242.2,0.4947]
[1765547139962,6.16850872,3242.3,3241.9,0.4822]
[1765547142562,6.1682704,3242.4,3241.6,3.08487391]
[1765547142748,6.1682704,3242.4,3241.7,0.4822]
[1765547145940,9.2524056,3242.4,3241.1,0.1801]
[1765547146142,0.451,3241.8,3241.2,0.4822]
[1765547146580,3.08480118,3241.7,3241.2,0.4822]
[1765547147694,3.08475179,3241.8,3241.6,0.4947]
[1765547147987,3.08475179,3241.8,3241.7,0.4947]
[1765547148380,3.57253954,3242.0,3241.7,0.9769]
[1765547148605,3.57253954,3242.0,3241.9,0.4947]
[1765547148801,3.08433071,3242.2,3241.9,0.4947]
[1765547148991,6.16866142,3242.2,3241.9,0.9769]
[1765547149397,6.16866142,3242.2,3241.9,0.4947]
[1765547150632,0.0725,3242.0,3241.3,0.4695]
[1765547150814,0.0047,3241.8,3241.3,0.9575]
[1765547151322,0.0047,3241.8,3241.4,0.4695]
[1765547153027,3.08451573,3242.0,3241.7,0.4711]
[1765547153225,3.08451573,3242.0,3241.8,0.4711]
[1765547153423,3.08451573,3242.0,3241.9,0.4711]
[1765547154230,3.08451573,3242.0,3241.5,0.4695]
[1765547154398,3.08451573,3242.0,3241.6,0.4695]
[1765547155592,6.1686509,3242.2,3241.6,0.4695]
[1765547161596,6.1686509,3242.2,3241.6,6.18192176]
[1765547162138,6.1686509,3242.2,3241.7,0.4695]
[1765547162643,0.488,3242.3,3242.1,0.4711]
[1765547162801,3.0841352,3242.4,3242.2,0.4711]
[1765547162995,3.0841352,3242.4,3242.2,0.9406]
[1765547163194,3.57199716,3242.6,3242.3,0.4711]
[1765547163424,3.08388607,3242.7,3242.5,0.4711]
[1765547163733,3.08388607,3242.7,3242.5,0.9406]
[1765547163934,3.57368917,3242.9,3242.6,0.4711]
[1765547164833,3.57368917,3242.9,3242.8,0.4711]
[1765547165043,3.50693155,3242.9,3242.8,0.4711]
[1765547165835,3.08358589,3243.0,3242.8,0.9406]
[1765547166558,3.08358589,3243.0,3242.8,0.4711]
[1765547166956,3.08358589,3243.0,3242.9,0.4711]
[1765547167342,3.08358589,3243.0,3242.7,0.4695]
[1765547167732,3.08358589,3243.0,3242.4,3.08405961]
[1765547167733,0.002,3243.1,3242.5,0.488]
[1765547167954,0.002,3243.1,3242.6,0.62004218]
[1765547168457,0.002,3243.1,3242.6,1.08954218]
[1765547169068,0.499,3242.7,3242.1,3.27770848]
[1765547169225,0.488,3243.0,3242.2,0.4695]
[1765547169226,0.5385,3243.0,3242.2,0.4695]
[1765547169419,0.1492,3242.9,3242.2,0.4695]
[1765547169892,0.1492,3242.9,3242.2,3.55380308]
[1765547170164,0.1492,3242.9,3242.3,0.4695]
[1765547170363,0.1492,3242.9,3242.3,0.84421997]
[1765547171024,0.6259,3242.9,3242.3,0.84421997]
[1765547172037,6.16750954,3242.8,3242.3,0.84421997]
[1765547172243,6.16750954,3242.8,3242.3,0.4695]
[1765547172441,6.16750954,3242.8,3241.9,0.6628]
[1765547172442,0.499,3242.4,3241.9,0.6628]
[1765547173055,0.5495,3242.4,3241.9,0.6628]
[1765547173666,0.499,3242.4,3241.9,0.6628]
[1765547173859,0.499,3242.4,3242.0,0.4695]
[1765547174065,3.08404545,3242.5,3242.0,0.4695]
[1765547174370,3.08404545,3242.5,3242.3,0.4711]
[1765547174754,6.1680909,3242.5,3242.3,0.4711]
[1765547175072,6.1680909,3242.5,3242.0,0.4695]
[1765547175073,0.0725,3242.4,3242.0,0.4695]
[1765547175274,0.0725,3242.4,3242.0,0.8442451]
[1765547175687,0.4727,3242.1,3241.6,3.08484535]
[1765547175980,6.16788996,3242.6,3241.3,0.488]
[1765547176140,0.4767,3242.5,3241.7,0.4695]
[1765547178577,6.1682704,3242.4,3241.7,0.4695]
[1765547179474,6.1682704,3242.4,3241.7,3.55428055]
[1765547179676,6.1682704,3242.4,3241.8,0.41347558]
[1765547180473,3.0841352,3242.4,3241.8,3.95685865]
[1765547180846,6.1682704,3242.4,3241.8,0.87217558]
[1765547181281,3.0841352,3242.4,3241.8,0.87217558]
[1765547181845,6.1682704,3242.4,3241.8,0.87217558]
[1765547182041,3.0841352,3242.4,3241.8,0.4587]
[1765547182277,3.0841352,3242.4,3241.8,3.54337849]
[1765547182475,3.0841352,3242.4,3241.8,0.4587]
[1765547182675,6.1682704,3242.4,3241.8,0.4587]
[1765547182879,3.0841352,3242.4,3241.8,0.4587]
[1765547183175,3.0841352,3242.4,3241.8,3.95575143]
[1765547183485,3.0841352,3242.4,3241.8,0.87109289]
[1765547183672,3.0841352,3242.4,3241.9,0.4587]
[1765547183977,3.0841057,3242.5,3241.9,0.4587]
[1765547186578,0.1492,3242.9,3242.4,0.4627]
[1765547186891,3.08377166,3242.8,3242.5,0.4627]
[1765547187387,3.08377166,3242.8,3242.7,0.4627]
[1765547189188,3.08550122,3243.1,3242.7,0.9214]
[1765547189390,3.08550122,3243.1,3242.4,0.193]
[1765547189689,6.16900244,3243.1,3242.7,0.4587]
[1765547190291,3.08550122,3243.1,3242.7,0.4587]
[1765547190587,3.08550122,3243.1,3242.7,0.81297395]
[1765547190787,3.08550122,3243.1,3242.8,0.4587]
[1765547191359,0.002,3243.1,3243.0,0.4627]
[1765547191691,0.002,3243.1,3242.8,0.4587]
[1765547193992,0.0574,3242.9,3242.4,0.193]
[1765547194192,0.1525,3242.8,3242.4,0.193]
[1765547194890,3.08384987,3242.7,3242.4,0.193]
[1765547195591,3.08384987,3242.7,3242.4,0.6517]
[1765547197001,3.08375477,3242.8,3242.4,0.6517]
[1765547197587,0.4839,3242.5,3242.2,3.08431835]
[1765547197784,0.4839,3242.5,3242.3,0.32773184]
[1765547198087,3.23495477,3242.8,3242.3,0.32773184]
[1765547198282,3.23495477,3242.8,3242.4,0.4627]
[1765547200400,3.23495477,3242.8,3242.4,0.9214]
[1765547200572,6.31870954,3242.8,3242.4,0.9214]
[1765547200896,3.23495477,3242.8,3242.4,1.09511318]
[1765547202299,3.08375477,3242.8,3242.4,1.09511318]
[1765547202602,3.08375477,3242.8,3242.4,0.63641318]
[1765547202772,3.08375477,3242.8,3242.5,0.4587]
[1765547203180,3.08375477,3242.8,3242.4,0.17371318]
[1765547203474,6.65950954,3242.8,3242.4,0.17371318]
[1765547203780,6.65950954,3242.8,3242.3,0.32773184]
[1765547203971,6.65950954,3242.8,3242.3,0.78643184]
[1765547204374,6.16750954,3242.8,3242.3,0.32773184]
[1765547204688,0.492,3242.7,3242.3,0.32773184]
[1765547204886,0.492,3242.7,3242.1,0.6517]
[1765547206103,0.492,3242.7,3241.9,0.58047529]
[1765547206398,0.492,3242.7,3241.8,0.4587]
[1765547206603,6.16788996,3242.6,3241.8,0.4587]
[1765547206903,6.16788996,3242.6,3241.8,3.54338327]
[1765547207095,0.492,3242.5,3241.9,0.40313833]
[1765547207305,0.492,3242.5,3241.9,0.86183833]
[1765547209620,3.0841352,3242.4,3241.9,3.94644461]
[1765547209906,3.0841352,3242.4,3241.9,3.94643016]
[1765547210102,3.0841352,3242.4,3242.0,0.4688]
[1765547210407,3.0841352,3242.4,3242.0,0.86445302]
[1765547212907,0.0626,3242.9,3242.1,0.6531]
[1765547213076,0.5244,3242.9,3242.3,0.4984]
[1765547213689,3.08375477,3242.8,3242.3,0.4984]
[1765547213980,3.08375477,3242.8,3242.3,0.9672]
[1765547214506,3.08375477,3242.8,3242.4,0.4688]
[1765547215286,3.08375477,3242.8,3242.7,0.4984]
[1765547215493,3.08375477,3242.8,3242.5,0.4688]
[1765547215809,6.16745798,3242.9,3242.5,0.4688]
[1765547216608,6.62925798,3242.9,3242.5,0.4688]
[1765547217403,6.62925798,3242.9,3242.3,0.4688]
[1765547217714,3.08372597,3242.9,3242.8,0.4984]
[1765547218407,0.002,3243.1,3242.8,0.9672]
[1765547218611,3.0854751,3243.1,3242.9,0.9672]
[1765547219012,3.0854751,3243.1,3242.9,0.4984]
[1765547220009,6.1689502,3243.1,3242.7,0.4688]
[1765547220308,0.0874,3243.0,3242.5,0.4688]
[1765547220512,0.5454,3243.0,3242.5,0.4688]
[1765547220913,0.6072,3242.9,3242.3,0.4688]
[1765547221103,0.6072,3242.9,3242.4,0.35530695]
[1765547221304,0.6072,3242.9,3242.4,0.82410695]
[1765547222314,3.08375477,3242.8,3242.4,0.35530695]
[1765547222502,0.0874,3242.5,3241.9,4.04134425]
[1765547222906,0.0874,3242.5,3241.9,0.9568]
[1765547223103,0.0911,3242.4,3241.6,3.96846498]
[1765547223307,0.0911,3242.4,3241.7,0.8656465]
[1765547223618,0.0911,3242.4,3241.7,3.95043837]
[1765547223818,0.0911,3242.4,3241.8,0.4688]
[1765547224110,0.0911,3242.4,3241.7,0.3968465]
[1765547224511,3.08423033,3242.3,3241.7,0.3968465]
[1765547224705,3.08423033,3242.3,3241.8,0.34817041]
[1765547227485,3.08423033,3242.3,3241.9,0.4688]
[1765547233418,3.08423033,3242.3,3241.8,0.34817041]
[1765547233623,0.1642,3241.9,3241.2,0.92628185]
[1765547233823,0.027,3241.7,3241.2,4.50811154]
[1765547234189,0.027,3241.7,3241.3,0.4688]
[1765547234591,0.1032,3242.2,3241.6,0.4984]
[1765547235124,0.565,3242.2,3241.6,0.4984]
[1765547235495,6.16884118,3242.1,3241.6,0.9672]
[1765547236611,6.63064118,3242.1,3241.6,0.9672]
[1765547237627,3.08442059,3242.1,3241.7,0.4909]
[1765547238423,6.16884118,3242.1,3241.2,4.03929369]
[1765547238623,6.65964118,3242.1,3241.5,0.4909]
[1765547239006,6.16884118,3242.1,3241.5,0.4909]
[1765547239512,3.08442059,3242.1,3241.6,0.03084896]
[1765547239824,3.08442059,3242.1,3241.5,3.57584359]
[1765547240027,3.08442059,3242.1,3241.5,0.4909]
[1765547240320,3.08442059,3242.1,3241.6,1.08287477]
[1765547240724,3.08442059,3242.1,3241.7,0.4626]
[1765547241113,6.16884118,3242.1,3241.7,0.4626]
[1765547241634,6.16846066,3242.3,3241.7,0.4626]
[1765547242134,6.16846066,3242.3,3241.6,0.62027477]
[1765547242135,0.4952,3242.2,3241.6,0.62027477]
[1765547242436,0.4952,3242.2,3241.5,0.4626]
[1765547243832,6.16884118,3242.1,3241.5,0.4626]
[1765547244303,6.66404118,3242.1,3241.5,0.4626]
[1765547249228,0.4952,3242.0,3241.3,1.94372414]
[1765547249730,0.4952,3242.0,3241.4,0.4626]
[1765547249928,0.4952,3242.0,3241.4,0.96549549]
[1765547250230,6.16922174,3241.9,3241.4,0.4626]
[1765547250737,6.66442174,3241.9,3241.4,0.4626]
[1765547251313,3.57981087,3241.9,3241.4,0.4626]
[1765547251711,3.08461087,3241.9,3241.4,0.4626]
[1765547252616,3.08438219,3242.2,3241.8,0.4626]
[1765547253113,3.57958219,3242.2,3241.8,0.4626]
[1765547253337,3.08442059,3242.1,3241.8,0.4626]
[1765547253537,6.16889126,3242.1,3241.8,0.4626]
[1765547253741,3.08442059,3242.1,3241.4,3.0850802]
[1765547254042,6.66409126,3242.1,3241.5,0.4626]
[1765547254236,6.66409126,3242.1,3241.4,0.91922043]
[1765547255334,6.16889126,3242.1,3241.4,0.91922043]
[1765547255529,0.4952,3242.0,3241.4,0.91922043]
[1765547256632,0.4952,3242.0,3241.5,0.4626]
[1765547256817,6.16889126,3242.1,3241.5,0.96235238]
[1765547257015,6.66409126,3242.1,3241.5,0.96235238]
[1765547260153,6.66409126,3242.1,3241.5,0.4626]
[1765547261016,3.57962059,3242.1,3241.5,0.4626]
[1765547261216,3.08442059,3242.1,3241.5,0.4626]
[1765547261645,6.16873616,3242.2,3241.5,3.54757873]
[1765547262756,6.16873616,3242.2,3241.5,0.4626]
[1765547263047,6.16873616,3242.2,3241.6,0.4626]
[1765547265224,6.66393616,3242.2,3241.6,0.4626]
[1765547265425,6.16873616,3242.2,3241.6,0.4626]
[1765547265652,0.4952,3242.1,3241.6,0.4626]
[1765547266244,6.16903146,3242.0,3241.6,0.4626]
[1765547268855,6.1686509,3242.2,3241.6,0.4626]
[1765547269857,6.6566509,3242.2,3241.6,0.4626]
[1765547270957,6.6566509,3242.2,3241.3,0.99312414]
[1765547271165,0.4772,3242.1,3241.3,1.98082414]
[1765547271355,0.4772,3242.1,3241.3,1.48112414]
[1765547271531,0.4772,3242.1,3241.4,0.4997]
[1765547274756,3.08451573,3242.0,3241.4,3.58478358]
[1765547275259,3.08451573,3242.0,3241.5,0.4997]
[1765547275962,6.16896998,3242.1,3241.5,0.4997]
[1765547276645,3.08448499,3242.1,3241.5,0.4997]
[1765547276829,3.08435555,3242.2,3242.0,0.4678]
[1765547277028,3.08435555,3242.2,3241.6,3.4433747]
[1765547277029,3.08435555,3242.2,3242.1,0.4678]
[1765547277229,3.5721352,3242.4,3242.1,0.4678]
[1765547278167,6.6562704,3242.4,3242.1,0.4678]
[1765547279854,6.6562704,3242.4,3242.1,0.9675]
[1765547280186,6.6562704,3242.4,3242.1,0.4678]
[1765547281196,6.6562704,3242.4,3242.1,0.9675]
[1765547281475,3.56108677,3242.7,3242.3,0.4678]
[1765547281476,3.08406739,3242.5,3242.3,0.4678]
[1765547281680,3.08406739,3242.5,3242.2,0.4997]
[1765547281888,6.16813478,3242.5,3242.2,0.4997]
[1765547282091,6.16813478,3242.5,3242.1,0.1931]
[1765547282382,6.16813478,3242.5,3242.1,0.6928]
[1765547282681,0.4772,3242.5,3241.9,0.4997]
[1765547282851,0.4772,3242.5,3241.9,0.90694672]
[1765547283047,3.08394498,3242.6,3242.4,0.4678]
[1765547283280,3.08394498,3242.6,3242.5,0.4678]
[1765547283786,3.08387305,3242.7,3242.5,0.4678]
[1765547283951,3.08387305,3242.7,3242.6,0.4678]
[1765547284453,3.08375547,3242.8,3242.6,0.4678]
[1765547285580,0.002,3243.1,3242.7,0.4678]
[1765547285773,3.08546951,3243.1,3242.8,0.4678]
[1765547286085,6.64617993,3243.1,3242.5,0.4997]
[1765547286383,6.64617993,3243.1,3242.6,0.35837785]
[1765547286581,6.64617993,3243.1,3242.4,3.08412524]
[1765547286762,6.64617993,3243.1,3242.4,3.58382524]
[1765547286962,0.0721,3242.5,3242.4,0.4997]
[1765547287181,0.0721,3242.5,3242.2,3.57232232]
[1765547287379,0.0721,3242.5,3242.2,4.07202232]
[1765547287685,0.6256,3242.8,3242.3,0.92621223]
[1765547287890,0.6256,3242.8,3242.4,0.4678]
[1765547288190,6.64617993,3243.1,3242.4,0.4997]
[1765547288561,0.4772,3243.0,3242.4,0.4997]
[1765547288980,3.08359214,3243.0,3242.4,3.58383086]
[1765547289277,6.16718428,3243.0,3242.5,0.40103431]
[1765547289583,3.56079214,3243.0,3242.4,0.4997]
[1765547291662,3.08359214,3243.0,3242.3,3.51068685]
[1765547291862,0.4772,3242.9,3242.3,3.51068685]
[1765547292161,0.4772,3242.9,3242.3,4.01038685]
[1765547292659,0.4772,3242.9,3242.3,0.92621223]
[1765547292884,0.4772,3242.9,3242.3,4.01042596]
[1765547293190,0.4772,3242.9,3242.4,1.02108337]
[1765547293889,3.56089525,3242.9,3242.4,1.02108337]
[1765547294194,3.56089525,3242.9,3242.5,0.4997]
[1765547294491,3.08369525,3242.9,3242.5,0.4997]
[1765547294988,3.56089525,3242.9,3242.4,0.4997]
[1765547295565,3.08369525,3242.9,3242.4,0.4997]
[1765547295761,6.1673905,3242.9,3242.4,0.4997]
[1765547295965,3.08384987,3242.7,3242.4,0.4997]
[1765547296267,3.08384987,3242.7,3242.2,0.488]
[1765547296466,3.56104987,3242.7,3242.2,0.9877]
[1765547296794,0.4928,3242.6,3242.2,3.08432362]
[1765547296994,3.08379383,3242.8,3242.2,3.81928731]
[1765547297293,4.06629354,3243.1,3242.4,3.08411728]
[1765547297596,3.57349354,3243.1,3242.7,0.4578]
[1765547297765,3.08548924,3243.1,3242.7,0.4578]
[1765547297965,3.08548924,3243.1,3242.8,0.4703]
[1765547298367,6.16897848,3243.1,3242.6,0.4703]
[1765547298695,6.66177848,3243.1,3242.6,0.4703]
[1765547298867,0.4928,3243.0,3242.6,0.4703]
[1765547299193,6.66177848,3243.1,3242.6,0.4703]
[1765547299386,0.4928,3243.0,3242.6,0.4703]
[1765547299894,0.4928,3243.0,3242.4,0.4768]
[1765547300105,0.4928,3243.0,3242.4,0.90639489]
[1765547300693,3.08365968,3242.9,3242.4,0.90639489]
[1765547301083,3.08365968,3242.9,3242.5,0.4768]
[1765547301499,3.57640198,3243.0,3242.5,0.4768]
[1765547301798,3.08360198,3243.0,3242.5,0.4768]
[1765547301968,3.54300198,3243.0,3242.5,0.4768]
[1765547302368,3.08360198,3243.0,3242.5,0.4768]
[1765547302583,3.54300198,3243.0,3242.5,0.4768]
[1765547305599,3.08360198,3243.0,3242.5,3.56083694]
[1765547305901,3.08360198,3243.0,3242.5,1.18426457]
[1765547306196,3.08360198,3243.0,3242.6,0.4768]
[1765547307195,0.002,3243.1,3242.9,0.4605]
[1765547307368,0.002,3243.1,3243.0,0.9373]
[1765547307777,0.002,3243.1,3243.0,4.0208646]
[1765547307970,0.002,3243.1,3243.0,4.78012648]
[1765547308197,0.002,3243.1,3243.0,1.69656188]
[1765547308904,0.002,3243.1,3243.0,4.78012648]
[1765547309278,0.002,3243.1,3243.0,1.69656188]
[1765547310679,0.002,3243.1,3243.0,4.78012648]
[1765547310879,0.002,3243.1,3243.0,1.69656188]
[1765547311084,0.002,3243.1,3243.0,0.9373]
[1765547311590,0.002,3243.1,3243.0,4.0208646]
[1765547311781,0.002,3243.1,3243.0,9.72873994]
[1765547317611,0.002,3243.2,3243.1,0.98597929]
[1765547317781,0.002,3243.2,3243.1,2.10667929]
[1765547317987,0.002,3243.2,3243.1,4.39634563]
[1765547318185,0.002,3243.2,3243.1,4.42718032]
[1765547318509,0.002,3243.2,3243.1,4.55059463]
[1765547319105,0.002,3244.2,3244.0,5.70787534]
[1765547319283,0.002,3244.2,3244.0,9.73798939]
[1765547319485,0.002,3244.2,3244.0,11.49685937]
[1765547319906,0.002,3244.2,3244.0,11.62026455]
[1765547321706,0.002,3244.2,3244.0,17.90861518]
[1765547322217,0.002,3244.2,3244.0,18.31411918]
[1765547323037,0.002,3244.2,3244.0,12.11924384]
[1765547323205,0.002,3244.2,3244.0,12.20073984]
[1765547324297,0.002,3244.2,3244.0,11.71373984]
[1765547324497,0.002,3244.2,3244.0,12.20073984]
[1765547325227,0.002,3244.2,3244.0,11.71373984]
[1765547325395,0.002,3244.2,3244.0,12.20073984]
[1765547328821,0.002,3244.2,3244.0,6.4928645]
[1765547329037,0.002,3244.2,3244.0,12.20073984]
[1765547330202,0.002,3244.2,3244.0,11.71373984]
[1765547330421,0.002,3244.2,3244.0,12.20073984]
[1765547334634,0.002,3244.2,3244.0,13.12622302]
[1765547334818,0.002,3244.2,3244.0,18.83409836]
[1765547335064,0.002,3244.2,3244.1,0.58047529]
[1765547335335,0.002,3244.2,3244.1,4.01351925]
[1765547335831,0.002,3244.2,3244.1,4.13690006]
[1765547336029,0.002,3244.2,3244.1,7.21941909]
[1765547336241,0.002,3244.2,3244.1,7.1885939]
[1765547338933,0.002,3244.2,3244.1,6.7285939]
[1765547339107,0.002,3244.2,3244.1,7.6755939]
[1765547339311,0.002,3244.2,3244.1,13.37401346]
[1765547339837,0.002,3244.6,3244.2,0.405504]
[1765547340166,0.002,3245.0,3244.4,0.4935]
[1765547340436,0.002,3245.0,3244.9,6.19191956]
[1765547340643,0.002,3245.0,3244.9,7.25939485]
[1765547340804,0.002,3245.0,3244.9,7.71939485]
[1765547341001,0.002,3245.0,3244.9,10.80115391]
[1765547341226,0.002,3245.0,3244.9,12.28200302]
[1765547341654,0.002,3245.0,3244.9,11.94536177]
[1765547344210,0.002,3245.0,3244.9,11.45836177]
[1765547344410,0.0837,3245.0,3244.9,11.45186177]
[1765547344706,0.002,3245.0,3244.9,11.45186177]
[1765547346431,0.002,3245.0,3244.9,11.94536177]
[1765547346631,0.002,3245.0,3244.9,11.45186177]
[1765547346837,0.0837,3245.0,3244.9,11.45186177]
[1765547347609,0.002,3245.0,3244.9,12.40536177]
[1765547347839,0.002,3245.0,3244.9,18.10378133]
[1765547348034,0.002,3245.0,3244.9,19.02926451]
[1765547348841,0.002,3245.0,3244.9,13.33084495]
[1765547349718,0.002,3245.0,3244.9,19.02926451]
[1765547350815,0.002,3245.0,3244.9,13.33084495]
[1765547352215,0.002,3245.0,3244.9,19.02926451]
[1765547353311,0.002,3245.0,3244.9,13.33084495]
[1765547353854,0.002,3245.0,3244.9,13.73634895]
[1765547354060,0.002,3245.0,3244.9,19.42979443]
[1765547354961,0.002,3245.0,3244.9,11.45587473]
[1765547355162,0.4834,3245.0,3244.9,10.96237473]
[1765547355364,0.4834,3245.0,3244.9,11.44937473]
[1765547358055,0.5513,3245.0,3244.9,11.44937473]
[1765547358255,0.5513,3245.0,3244.9,10.96237473]
[1765547358570,0.5513,3245.0,3244.9,11.44937473]
[1765547358787,0.4834,3245.0,3244.9,10.96237473]
[1765547358968,0.4834,3245.0,3244.9,9.96852562]
[1765547359144,0.5513,3245.0,3244.9,0.61035875]
[1765547359470,0.5513,3245.0,3244.9,3.56875906]
[1765547359843,0.5513,3245.0,3244.9,0.487]
[1765547360471,0.5513,3245.0,3244.9,3.56875906]
[1765547360975,0.5513,3245.0,3244.9,0.487]
[1765547361579,0.5513,3245.0,3244.7,0.487]
[1765547361885,0.242,3244.9,3244.7,0.487]
[1765547362044,0.485,3244.8,3244.7,0.487]
[1765547362248,0.485,3244.8,3244.7,3.56894902]
[1765547362451,0.7313,3244.8,3244.7,3.56894902]
[1765547362750,0.7313,3244.8,3244.7,0.487]
[1765547363462,0.7313,3244.8,3244.7,3.56894902]
[1765547363761,0.7313,3244.8,3244.7,0.487]
[1765547364782,0.7313,3244.8,3244.5,1.4123961]
[1765547364985,0.4874,3244.6,3244.5,0.487]
[1765547365354,0.5493,3244.6,3244.5,0.487]
[1765547365685,0.4874,3244.6,3244.5,6.18293252]
[1765547365989,0.5493,3244.6,3244.5,6.87435577]
[1765547366187,0.5493,3244.6,3244.5,6.18293252]
[1765547366673,0.5493,3244.6,3244.5,5.69593252]
[1765547367263,0.5493,3244.6,3244.4,3.56921542]
[1765547367465,0.5493,3244.5,3244.4,3.56921542]
[1765547370585,0.5493,3244.5,3244.4,0.487]
[1765547371897,0.5493,3244.5,3244.4,3.569234]
[1765547373089,0.5493,3244.5,3244.4,0.487]
[1765547373867,0.4874,3244.5,3244.4,0.487]
[1765547374192,0.5493,3244.5,3244.4,0.487]
[1765547374994,0.5493,3244.5,3244.3,0.487]
[1765547375195,0.4595,3244.4,3244.3,0.487]
[1765547375398,0.5491,3244.4,3244.3,0.487]
[1765547375593,0.5454,3244.4,3244.3,0.487]
[1765547376395,3.627634,3244.4,3244.3,0.487]
[1765547379090,3.627634,3244.4,3243.9,3.08270718]
[1765547379294,0.4595,3244.3,3244.0,0.487]
[1765547379793,0.0896,3244.1,3244.0,0.487]
[1765547380991,0.5454,3244.1,3244.0,0.487]
[1765547383196,3.62791903,3244.1,3243.6,0.001]
[1765547383365,0.1925,3243.7,3243.6,0.001]
[1765547383882,0.6447,3243.7,3243.6,0.001]
[1765547384093,0.6447,3243.7,3243.6,3.0839942]
[1765547384396,0.0933,3243.7,3243.6,8.78531804]
[1765547384606,0.0933,3243.7,3243.6,10.02085868]
[1765547386594,0.0933,3243.7,3243.6,4.31953484]
[1765547386801,0.0933,3243.7,3243.6,10.02085868]
[1765547389071,0.4522,3243.9,3243.6,10.02085868]
[1765547389277,0.0992,3244.0,3243.6,10.97465868]
[1765547389583,0.5796,3244.0,3243.6,10.50965868]
[1765547391587,0.0992,3244.0,3243.6,10.50965868]
[1765547391902,0.5796,3244.0,3243.7,4.49085336]
[1765547392914,0.0992,3244.0,3243.7,4.49085336]
[1765547394219,3.08241749,3244.3,3243.7,4.49085336]
[1765547394606,0.4804,3244.2,3243.7,4.49085336]
[1765547396421,3.56282476,3244.2,3243.7,4.49085336]
[1765547396609,0.4804,3244.2,3243.7,4.49085336]
[1765547396809,0.4804,3244.1,3243.7,4.49085336]
[1765547397388,0.4804,3244.5,3243.9,5.70132384]
[1765547397623,3.56258196,3244.5,3243.9,5.70132384]
[1765547398015,0.0689,3244.0,3243.7,5.70132384]
[1765547398219,0.0689,3243.8,3243.7,5.70132384]
[1765547398520,0.0689,3243.8,3243.7,6.67624475]
[1765547400015,0.0689,3243.8,3243.7,9.7591439]
[1765547400222,0.4763,3244.0,3243.7,9.7591439]
[1765547400714,0.4804,3244.3,3243.7,10.2360439]
[1765547400915,0.4804,3244.2,3243.7,10.2360439]
[1765547401124,0.4804,3244.5,3243.8,1.02370439]
[1765547401324,0.4804,3244.4,3243.7,8.78422299]
[1765547401534,0.1678,3243.8,3243.6,0.001]